Body Name,Body,Service division categorisation,Expense Type,Date paid,Transaction Reference,Net,Supplier Name,
South Holland District Council,http://statistics.data.gov.uk/id/local-authority/32UF,Environmental Services,Agency Staff,04/06/2020,IJ00096192,1018.75,Bibby Factors Leicester Limited,
South Holland District Council,http://statistics.data.gov.uk/id/local-authority/32UF,Environmental Services,Agency Staff,04/06/2020,IJ00096192,462.50,Bibby Factors Leicester Limited,
South Holland District Council,http://statistics.data.gov.uk/id/local-authority/32UF,Environmental Services,Agency Staff,04/06/2020,IJ00096192,370.00,Bibby Factors Leicester Limited,
South Holland District Council,http://statistics.data.gov.uk/id/local-authority/32UF,Environmental Services,Agency Staff,04/06/2020,IJ00096195,971.25,Bibby Factors Leicester Limited,
South Holland District Council,http://statistics.data.gov.uk/id/local-authority/32UF,Environmental Services,Agency Staff,04/06/2020,IJ00096195,370.00,Bibby Factors Leicester Limited,
South Holland District Council,http://statistics.data.gov.uk/id/local-authority/32UF,Environmental Services,Agency Staff,04/06/2020,IJ00096195,370.00,Bibby Factors Leicester Limited,
South Holland District Council,http://statistics.data.gov.uk/id/local-authority/32UF,Housing,Bed and Breakfast Accommodation (Homelessness Service),04/06/2020,IJ00096214,525.00,Redacted personal information,REDACTED
South Holland District Council,http://statistics.data.gov.uk/id/local-authority/32UF,Housing,Bed and Breakfast Accommodation (Homelessness Service),04/06/2020,IJ00096218,875.00,Redacted personal information,REDACTED
South Holland District Council,http://statistics.data.gov.uk/id/local-authority/32UF,Housing,Bed and Breakfast Accommodation (Homelessness Service),04/06/2020,IJ00096219,875.00,Redacted personal information,REDACTED
South Holland District Council,http://statistics.data.gov.uk/id/local-authority/32UF,Housing,Bed and Breakfast Accommodation (Homelessness Service),04/06/2020,IJ00096221,875.00,Redacted personal information,REDACTED
South Holland District Council,http://statistics.data.gov.uk/id/local-authority/32UF,Housing,Bed and Breakfast Accommodation (Homelessness Service),04/06/2020,IJ00096223,525.00,Redacted personal information,REDACTED
South Holland District Council,http://statistics.data.gov.uk/id/local-authority/32UF,Housing,Bed and Breakfast Accommodation (Homelessness Service),04/06/2020,IJ00096243,562.50,Redacted personal information,REDACTED
South Holland District Council,http://statistics.data.gov.uk/id/local-authority/32UF,Environmental Services,Agency Staff,04/06/2020,IJ00096198,505.05,Blue Arrow Ltd,
South Holland District Council,http://statistics.data.gov.uk/id/local-authority/32UF,Environmental Services,Agency Staff,04/06/2020,IJ00096198,20.05,Blue Arrow Ltd,
South Holland District Council,http://statistics.data.gov.uk/id/local-authority/32UF,Environmental Services,Agency Staff,04/06/2020,IJ00096198,1010.47,Blue Arrow Ltd,
South Holland District Council,http://statistics.data.gov.uk/id/local-authority/32UF,Environmental Services,Agency Staff,04/06/2020,IJ00096209,404.04,Blue Arrow Ltd,
South Holland District Council,http://statistics.data.gov.uk/id/local-authority/32UF,Environmental Services,Agency Staff,04/06/2020,IJ00096209,1009.99,Blue Arrow Ltd,
South Holland District Council,http://statistics.data.gov.uk/id/local-authority/32UF,Environmental Services,Agency Staff,04/06/2020,IJ00096363,1385.77,Blue Arrow Ltd,
South Holland District Council,http://statistics.data.gov.uk/id/local-authority/32UF,Environmental Services,Materials and Consumables,04/06/2020,IJ00096364,5171.17,RPC bpi refuse,
South Holland District Council,http://statistics.data.gov.uk/id/local-authority/32UF,Finance,Telephones,04/06/2020,IJ00096359,2155.28,British Telecom Corporate Plc,
South Holland District Council,http://statistics.data.gov.uk/id/local-authority/32UF,Housing Landlord Manager,Fuel & Oil,04/06/2020,IJ00096299,293.49,C H Jones Ltd,
South Holland District Council,http://statistics.data.gov.uk/id/local-authority/32UF,Environmental Services,Fuel & Oil,04/06/2020,IJ00096299,296.41,C H Jones Ltd,
South Holland District Council,http://statistics.data.gov.uk/id/local-authority/32UF,Housing Landlord Manager,Fuel & Oil,04/06/2020,IJ00096299,219.60,C H Jones Ltd,
South Holland District Council,http://statistics.data.gov.uk/id/local-authority/32UF,Environmental Services,Fuel & Oil,04/06/2020,IJ00096299,5001.73,C H Jones Ltd,
South Holland District Council,http://statistics.data.gov.uk/id/local-authority/32UF,Environmental Services,Fuel & Oil,04/06/2020,IJ00096299,440.31,C H Jones Ltd,
South Holland District Council,http://statistics.data.gov.uk/id/local-authority/32UF,Environmental Services,Fuel & Oil,04/06/2020,IJ00096299,159.55,C H Jones Ltd,
South Holland District Council,http://statistics.data.gov.uk/id/local-authority/32UF,Environmental Services,Fuel & Oil,04/06/2020,IJ00096299,31.99,C H Jones Ltd,
South Holland District Council,http://statistics.data.gov.uk/id/local-authority/32UF,Housing Landlord Manager,PSPS Non Base Contract Costs,04/06/2020,IJ00096138,26645.00,Public Sector Partnership Serivces Limited,
South Holland District Council,http://statistics.data.gov.uk/id/local-authority/32UF,Housing Landlord Manager,PSPS Non Base Contract Costs,04/06/2020,IJ00096138,26645.00,Public Sector Partnership Serivces Limited,
South Holland District Council,http://statistics.data.gov.uk/id/local-authority/32UF,Planning,Telephones,04/06/2020,IJ00096173,47.76,Public Sector Partnership Serivces Limited,
South Holland District Council,http://statistics.data.gov.uk/id/local-authority/32UF,Chief Executive,Telephones,04/06/2020,IJ00096173,62.98,Public Sector Partnership Serivces Limited,
South Holland District Council,http://statistics.data.gov.uk/id/local-authority/32UF,Housing Landlord Manager,Telephones,04/06/2020,IJ00096173,42.04,Public Sector Partnership Serivces Limited,
South Holland District Council,http://statistics.data.gov.uk/id/local-authority/32UF,Democratic Services,Telephones,04/06/2020,IJ00096173,64.00,Public Sector Partnership Serivces Limited,
South Holland District Council,http://statistics.data.gov.uk/id/local-authority/32UF,Asset and Property,Telephones,04/06/2020,IJ00096173,3.00,Public Sector Partnership Serivces Limited,
South Holland District Council,http://statistics.data.gov.uk/id/local-authority/32UF,Building Control,Telephones,04/06/2020,IJ00096173,-4.82,Public Sector Partnership Serivces Limited,
South Holland District Council,http://statistics.data.gov.uk/id/local-authority/32UF,Housing Landlord Manager,Telephones,04/06/2020,IJ00096173,34.98,Public Sector Partnership Serivces Limited,
South Holland District Council,http://statistics.data.gov.uk/id/local-authority/32UF,Housing,Telephones,04/06/2020,IJ00096173,195.94,Public Sector Partnership Serivces Limited,
South Holland District Council,http://statistics.data.gov.uk/id/local-authority/32UF,Housing,Telephones,04/06/2020,IJ00096173,13.40,Public Sector Partnership Serivces Limited,
South Holland District Council,http://statistics.data.gov.uk/id/local-authority/32UF,Housing Landlord Manager,Telephones,04/06/2020,IJ00096173,30.80,Public Sector Partnership Serivces Limited,
South Holland District Council,http://statistics.data.gov.uk/id/local-authority/32UF,Environmental Services,Telephones,04/06/2020,IJ00096173,76.43,Public Sector Partnership Serivces Limited,
South Holland District Council,http://statistics.data.gov.uk/id/local-authority/32UF,Environmental Services,Telephones,04/06/2020,IJ00096173,58.82,Public Sector Partnership Serivces Limited,
South Holland District Council,http://statistics.data.gov.uk/id/local-authority/32UF,Public Protection,Telephones,04/06/2020,IJ00096173,38.92,Public Sector Partnership Serivces Limited,
South Holland District Council,http://statistics.data.gov.uk/id/local-authority/32UF,Public Protection,Telephones,04/06/2020,IJ00096173,87.50,Public Sector Partnership Serivces Limited,
South Holland District Council,http://statistics.data.gov.uk/id/local-authority/32UF,Public Protection,Telephones,04/06/2020,IJ00096173,12.00,Public Sector Partnership Serivces Limited,
South Holland District Council,http://statistics.data.gov.uk/id/local-authority/32UF,Community Development,Telephones,04/06/2020,IJ00096173,28.32,Public Sector Partnership Serivces Limited,
South Holland District Council,http://statistics.data.gov.uk/id/local-authority/32UF,Community Development,Telephones,04/06/2020,IJ00096173,31.60,Public Sector Partnership Serivces Limited,
South Holland District Council,http://statistics.data.gov.uk/id/local-authority/32UF,Economic Development,Telephones,04/06/2020,IJ00096173,12.00,Public Sector Partnership Serivces Limited,
South Holland District Council,http://statistics.data.gov.uk/id/local-authority/32UF,Housing Landlord Manager,Telephones,04/06/2020,IJ00096173,24.00,Public Sector Partnership Serivces Limited,
South Holland District Council,http://statistics.data.gov.uk/id/local-authority/32UF,Public Protection,Telephones,04/06/2020,IJ00096173,12.00,Public Sector Partnership Serivces Limited,
South Holland District Council,http://statistics.data.gov.uk/id/local-authority/32UF,Housing Landlord Manager,Telephones,04/06/2020,IJ00096173,44.00,Public Sector Partnership Serivces Limited,
South Holland District Council,http://statistics.data.gov.uk/id/local-authority/32UF,Community Development,Telephones,04/06/2020,IJ00096173,-8.40,Public Sector Partnership Serivces Limited,
South Holland District Council,http://statistics.data.gov.uk/id/local-authority/32UF,Housing Landlord Manager,Telephones,04/06/2020,IJ00096173,12.00,Public Sector Partnership Serivces Limited,
South Holland District Council,http://statistics.data.gov.uk/id/local-authority/32UF,Communications,Telephones,04/06/2020,IJ00096173,12.00,Public Sector Partnership Serivces Limited,
South Holland District Council,http://statistics.data.gov.uk/id/local-authority/32UF,Corporate Improvement and Performance,Telephones,04/06/2020,IJ00096173,27.13,Public Sector Partnership Serivces Limited,
South Holland District Council,http://statistics.data.gov.uk/id/local-authority/32UF,Commercialisation,Telephones,04/06/2020,IJ00096173,12.00,Public Sector Partnership Serivces Limited,
South Holland District Council,http://statistics.data.gov.uk/id/local-authority/32UF,Commercialisation,Telephones,04/06/2020,IJ00096173,70.06,Public Sector Partnership Serivces Limited,
South Holland District Council,http://statistics.data.gov.uk/id/local-authority/32UF,Chief Executive,Telephones,04/06/2020,IJ00096173,606.97,Public Sector Partnership Serivces Limited,
South Holland District Council,http://statistics.data.gov.uk/id/local-authority/32UF,Commercialisation,Telephones,04/06/2020,IJ00096173,12.00,Public Sector Partnership Serivces Limited,
South Holland District Council,http://statistics.data.gov.uk/id/local-authority/32UF,Environmental Services,Telephones,04/06/2020,IJ00096173,24.00,Public Sector Partnership Serivces Limited,
South Holland District Council,http://statistics.data.gov.uk/id/local-authority/32UF,Community Development,Telephones,04/06/2020,IJ00096173,65.36,Public Sector Partnership Serivces Limited,
South Holland District Council,http://statistics.data.gov.uk/id/local-authority/32UF,Environmental Services,Telephones,04/06/2020,IJ00096173,12.00,Public Sector Partnership Serivces Limited,
South Holland District Council,http://statistics.data.gov.uk/id/local-authority/32UF,Housing Landlord Manager,Telephones,04/06/2020,IJ00096173,44.53,Public Sector Partnership Serivces Limited,
South Holland District Council,http://statistics.data.gov.uk/id/local-authority/32UF,HR,Staff Training Expenses,04/06/2020,IJ00096332,145.00,Public Sector Partnership Serivces Limited,
South Holland District Council,http://statistics.data.gov.uk/id/local-authority/32UF,Revs and Bens,Court Costs,04/06/2020,IJ00096332,507.00,Public Sector Partnership Serivces Limited,
South Holland District Council,http://statistics.data.gov.uk/id/local-authority/32UF,HR,Other Employee Expenses,04/06/2020,IJ00096332,40.00,Public Sector Partnership Serivces Limited,
South Holland District Council,http://statistics.data.gov.uk/id/local-authority/32UF,HR,Staff Recruitment,04/06/2020,IJ00096332,241.20,Public Sector Partnership Serivces Limited,
South Holland District Council,http://statistics.data.gov.uk/id/local-authority/32UF,ICT and Customer Services,Computer Hardware Purchase,04/06/2020,IJ00096332,15.83,Public Sector Partnership Serivces Limited,
South Holland District Council,http://statistics.data.gov.uk/id/local-authority/32UF,HR,Conference and Seminars,04/06/2020,IJ00096332,655.00,Public Sector Partnership Serivces Limited,
South Holland District Council,http://statistics.data.gov.uk/id/local-authority/32UF,HR,Staff Training Expenses,04/06/2020,IJ00096334,0.99,Public Sector Partnership Serivces Limited,
South Holland District Council,http://statistics.data.gov.uk/id/local-authority/32UF,Revs and Bens,Court Costs,04/06/2020,IJ00096334,265.00,Public Sector Partnership Serivces Limited,
South Holland District Council,http://statistics.data.gov.uk/id/local-authority/32UF,HR,Other Employee Expenses,04/06/2020,IJ00096334,44.99,Public Sector Partnership Serivces Limited,
South Holland District Council,http://statistics.data.gov.uk/id/local-authority/32UF,ICT and Customer Services,Computer Hardware Purchase,04/06/2020,IJ00096334,3408.19,Public Sector Partnership Serivces Limited,
South Holland District Council,http://statistics.data.gov.uk/id/local-authority/32UF,Housing,Subscriptions to Organisations and Other Bodies,04/06/2020,IJ00096340,2000.00,Derby City Council,
South Holland District Council,http://statistics.data.gov.uk/id/local-authority/32UF,Environmental Services,Professional & Contractors Fees,04/06/2020,IJ00096356,2123.44,Gbsg  Ltd,
South Holland District Council,http://statistics.data.gov.uk/id/local-authority/32UF,Housing Landlord Manager,Grounds Maintenance Recharge,04/06/2020,IJ00096301,2500.00,Greenscape Tree Safe Ltd,
South Holland District Council,http://statistics.data.gov.uk/id/local-authority/32UF,Environmental Services,Agency Staff,04/06/2020,IJ00096142,1084.10,Integrity Plus Ltd,
South Holland District Council,http://statistics.data.gov.uk/id/local-authority/32UF,Environmental Services,Agency Staff,04/06/2020,IJ00096143,640.31,Integrity Plus Ltd,
South Holland District Council,http://statistics.data.gov.uk/id/local-authority/32UF,Environmental Services,Agency Staff,04/06/2020,IJ00096365,1295.18,Integrity Plus Ltd,
South Holland District Council,http://statistics.data.gov.uk/id/local-authority/32UF,Housing Landlord Manager,Buildings Maintenance - Responsive,04/06/2020,IJ00096203,780.00,L Fragale General Building & Maintenance,
South Holland District Council,http://statistics.data.gov.uk/id/local-authority/32UF,Housing Landlord Manager,Buildings Maintenance - Responsive,04/06/2020,IJ00096204,787.00,L Fragale General Building & Maintenance,
South Holland District Council,http://statistics.data.gov.uk/id/local-authority/32UF,Housing Landlord Manager,Buildings Maintenance - Responsive,04/06/2020,IJ00096206,997.50,L Fragale General Building & Maintenance,
South Holland District Council,http://statistics.data.gov.uk/id/local-authority/32UF,Democratic Services,Legal Fees Routine,04/06/2020,IJ00096181,1826.61,Lincolnshire County Council,
South Holland District Council,http://statistics.data.gov.uk/id/local-authority/32UF,Community Development,Grants and Contributions- Where a Service is Received,04/06/2020,IJ00096202,2946.38,Orchestras Live,
South Holland District Council,http://statistics.data.gov.uk/id/local-authority/32UF,Environmental Services,Agency Staff,04/06/2020,IJ00096313,1839.90,The Best Connection Group Ltd,
South Holland District Council,http://statistics.data.gov.uk/id/local-authority/32UF,Environmental Services,Agency Staff,04/06/2020,IJ00096313,516.89,The Best Connection Group Ltd,
South Holland District Council,http://statistics.data.gov.uk/id/local-authority/32UF,Environmental Services,Agency Staff,04/06/2020,IJ00096313,1529.95,The Best Connection Group Ltd,
South Holland District Council,http://statistics.data.gov.uk/id/local-authority/32UF,Finance,Insurance,04/06/2020,IJ00096258,14026.00,The Risk Factor Ltd,
South Holland District Council,http://statistics.data.gov.uk/id/local-authority/32UF,Asset and Property,Buildings Maintenance - Programmed,04/06/2020,IJ00096298,2200.00,Tyrrell Contractors Ltd,
South Holland District Council,http://statistics.data.gov.uk/id/local-authority/32UF,Finance,Fees and Charges General,04/06/2020,IJ00096188,-27.58,Unison,
South Holland District Council,http://statistics.data.gov.uk/id/local-authority/32UF,Balance Sheet,Payroll-Unison,04/06/2020,IJ00096188,919.20,Unison,
South Holland District Council,http://statistics.data.gov.uk/id/local-authority/32UF,Environmental Services,Professional & Contractors Fees,04/06/2020,IJ00096272,1150.00,West & East Anglian Asbestos Removals Ltd,
South Holland District Council,http://statistics.data.gov.uk/id/local-authority/32UF,Democratic Services,Other Miscellaneous Expenses,04/06/2020,IJ00096217,2000.00,Whaplode Parish Council,
South Holland District Council,http://statistics.data.gov.uk/id/local-authority/32UF,Housing Landlord Manager,Roof Repairs,04/06/2020,IJ00096133,720.00,Wrights & Holbeach Asphalt Ltd,
South Holland District Council,http://statistics.data.gov.uk/id/local-authority/32UF,Housing Landlord Manager,Roof Repairs,04/06/2020,IJ00096134,900.00,Wrights & Holbeach Asphalt Ltd,
South Holland District Council,http://statistics.data.gov.uk/id/local-authority/32UF,Finance,Professional & Contractors Fees,04/06/2020,IJ00096256,4706.82,Zurich Municipal,
South Holland District Council,http://statistics.data.gov.uk/id/local-authority/32UF,Housing Landlord Manager,Cleaning Contract,04/06/2020,IJ00096312,520.00,Lilly Spotless Cleaning Ltd,
South Holland District Council,http://statistics.data.gov.uk/id/local-authority/32UF,Democratic Services,Subscriptions to Organisations and Other Bodies,09/06/2020,IJ00096398,8678.46,Local Government Association,
South Holland District Council,http://statistics.data.gov.uk/id/local-authority/32UF,Environmental Services,Agency Staff,11/06/2020,IJ00096443,1611.25,Bibby Factors Leicester Limited,
South Holland District Council,http://statistics.data.gov.uk/id/local-authority/32UF,Environmental Services,Agency Staff,11/06/2020,IJ00096443,462.50,Bibby Factors Leicester Limited,
South Holland District Council,http://statistics.data.gov.uk/id/local-authority/32UF,Housing,Bed and Breakfast Accommodation (Homelessness Service),11/06/2020,IJ00096494,875.00,Redacted personal information,REDACTED
South Holland District Council,http://statistics.data.gov.uk/id/local-authority/32UF,Housing,Bed and Breakfast Accommodation (Homelessness Service),11/06/2020,IJ00096495,875.00,Redacted personal information,REDACTED
South Holland District Council,http://statistics.data.gov.uk/id/local-authority/32UF,Housing Landlord Manager,Buildings Maintenance - Responsive,11/06/2020,IJ00096438,1550.00,Barry Disdels Landscapes and Maintenance,
South Holland District Council,http://statistics.data.gov.uk/id/local-authority/32UF,Housing Landlord Manager,Buildings Maintenance - Responsive,11/06/2020,IJ00096439,675.00,Barry Disdels Landscapes and Maintenance,
South Holland District Council,http://statistics.data.gov.uk/id/local-authority/32UF,Housing Landlord Manager,Cesspool Empying,11/06/2020,IJ00096402,1264.00,Bates Environmental Ltd,
South Holland District Council,http://statistics.data.gov.uk/id/local-authority/32UF,Housing Landlord Manager,Drain Repairs,11/06/2020,IJ00096402,6373.00,Bates Environmental Ltd,
South Holland District Council,http://statistics.data.gov.uk/id/local-authority/32UF,ICT and Customer Services,Computer Software Licence Costs,11/06/2020,IJ00096502,9997.50,Capita Business Services Ltd,
South Holland District Council,http://statistics.data.gov.uk/id/local-authority/32UF,Housing Landlord Manager,Fuel & Oil,11/06/2020,IJ00096456,45.70,C H Jones Ltd,
South Holland District Council,http://statistics.data.gov.uk/id/local-authority/32UF,Environmental Services,Fuel & Oil,11/06/2020,IJ00096456,284.89,C H Jones Ltd,
South Holland District Council,http://statistics.data.gov.uk/id/local-authority/32UF,Housing Landlord Manager,Fuel & Oil,11/06/2020,IJ00096456,52.20,C H Jones Ltd,
South Holland District Council,http://statistics.data.gov.uk/id/local-authority/32UF,Environmental Services,Fuel & Oil,11/06/2020,IJ00096456,52.41,C H Jones Ltd,
South Holland District Council,http://statistics.data.gov.uk/id/local-authority/32UF,Public Protection,Fuel & Oil,11/06/2020,IJ00096456,27.73,C H Jones Ltd,
South Holland District Council,http://statistics.data.gov.uk/id/local-authority/32UF,Environmental Services,Fuel & Oil,11/06/2020,IJ00096456,5033.59,C H Jones Ltd,
South Holland District Council,http://statistics.data.gov.uk/id/local-authority/32UF,Environmental Services,Fuel & Oil,11/06/2020,IJ00096456,411.90,C H Jones Ltd,
South Holland District Council,http://statistics.data.gov.uk/id/local-authority/32UF,Environmental Services,Fuel & Oil,11/06/2020,IJ00096456,70.33,C H Jones Ltd,
South Holland District Council,http://statistics.data.gov.uk/id/local-authority/32UF,Finance,Public Sector Partnership Services,11/06/2020,IJ00096448,261911.16,Public Sector Partnership Serivces Limited,
South Holland District Council,http://statistics.data.gov.uk/id/local-authority/32UF,Capital,Works to Buildings (main Contractor),11/06/2020,IJ00096492,124064.30,D Brown Building Contractors Ltd,
South Holland District Council,http://statistics.data.gov.uk/id/local-authority/32UF,HR,Other Employee Expenses,11/06/2020,IJ00096485,23.48,Fideliti Limited,
South Holland District Council,http://statistics.data.gov.uk/id/local-authority/32UF,HR,Payroll SHDC Child Care,11/06/2020,IJ00096485,587.00,Fideliti Limited,
South Holland District Council,http://statistics.data.gov.uk/id/local-authority/32UF,Asset and Property,Buildings Maintenance - Programmed,11/06/2020,IJ00096528,1171.72,Glen Farrow UK Ltd,
South Holland District Council,http://statistics.data.gov.uk/id/local-authority/32UF,Community Development,Materials and Consumables,11/06/2020,IJ00096512,1531.55,Glenside Nurseries Ltd,
South Holland District Council,http://statistics.data.gov.uk/id/local-authority/32UF,Spalding Special Expenses,Materials and Consumables,11/06/2020,IJ00096512,1531.55,Glenside Nurseries Ltd,
South Holland District Council,http://statistics.data.gov.uk/id/local-authority/32UF,Housing Landlord Manager,Grounds Maintenance Recharge,11/06/2020,IJ00096519,1200.00,Greenscape Tree Safe Ltd,
South Holland District Council,http://statistics.data.gov.uk/id/local-authority/32UF,Environmental Services,Agency Staff,11/06/2020,IJ00096457,1170.70,Integrity Plus Ltd,
South Holland District Council,http://statistics.data.gov.uk/id/local-authority/32UF,Environmental Services,Agency Staff,11/06/2020,IJ00096458,605.88,Integrity Plus Ltd,
South Holland District Council,http://statistics.data.gov.uk/id/local-authority/32UF,Housing Landlord Manager,Agency Staff,11/06/2020,IJ00096467,545.38,Integrity Plus Ltd,
South Holland District Council,http://statistics.data.gov.uk/id/local-authority/32UF,Environmental Services,Transport Insurance Excess,11/06/2020,IJ00096486,4310.59,Kents Of Spalding Ltd,
South Holland District Council,http://statistics.data.gov.uk/id/local-authority/32UF,Housing,Grants and Contributions- Where a Service is Received,11/06/2020,IJ00096437,1816.00,Language Line Ltd,
South Holland District Council,http://statistics.data.gov.uk/id/local-authority/32UF,Housing Landlord Manager,Buildings Maintenance - Responsive,11/06/2020,IJ00096508,800.00,Perfect Move,
South Holland District Council,http://statistics.data.gov.uk/id/local-authority/32UF,Community Development,Grants and Contributions to Outside Bodies- No Service Recei,11/06/2020,IJ00096413,3200.00,South Holland In Bloom,
South Holland District Council,http://statistics.data.gov.uk/id/local-authority/32UF,Housing,Grants and Contributions to Outside Bodies- No Service Recei,11/06/2020,IJ00096408,10000.00,Stuart Taplin Plumbing and Building Maintenance,
South Holland District Council,http://statistics.data.gov.uk/id/local-authority/32UF,Environmental Services,Agency Staff,11/06/2020,IJ00096446,2781.65,The Best Connection Group Ltd,
South Holland District Council,http://statistics.data.gov.uk/id/local-authority/32UF,Environmental Services,Agency Staff,11/06/2020,IJ00096446,1671.70,The Best Connection Group Ltd,
South Holland District Council,http://statistics.data.gov.uk/id/local-authority/32UF,Environmental Services,Agency Staff,18/06/2020,IJ00096611,1249.38,Bibby Factors Leicester Limited,
South Holland District Council,http://statistics.data.gov.uk/id/local-authority/32UF,Environmental Services,Agency Staff,18/06/2020,IJ00096611,462.50,Bibby Factors Leicester Limited,
South Holland District Council,http://statistics.data.gov.uk/id/local-authority/32UF,Environmental Services,Agency Staff,18/06/2020,IJ00096611,462.50,Bibby Factors Leicester Limited,
South Holland District Council,http://statistics.data.gov.uk/id/local-authority/32UF,Environmental Services,Agency Staff,18/06/2020,IJ00096565,505.05,Blue Arrow Ltd,
South Holland District Council,http://statistics.data.gov.uk/id/local-authority/32UF,Environmental Services,Agency Staff,18/06/2020,IJ00096565,494.69,Blue Arrow Ltd,
South Holland District Council,http://statistics.data.gov.uk/id/local-authority/32UF,Environmental Services,Agency Staff,18/06/2020,IJ00096565,515.78,Blue Arrow Ltd,
South Holland District Council,http://statistics.data.gov.uk/id/local-authority/32UF,Environmental Services,Agency Staff,18/06/2020,IJ00096748,515.78,Blue Arrow Ltd,
South Holland District Council,http://statistics.data.gov.uk/id/local-authority/32UF,Environmental Services,Agency Staff,18/06/2020,IJ00096748,494.69,Blue Arrow Ltd,
South Holland District Council,http://statistics.data.gov.uk/id/local-authority/32UF,Environmental Services,Agency Staff,18/06/2020,IJ00096748,515.78,Blue Arrow Ltd,
South Holland District Council,http://statistics.data.gov.uk/id/local-authority/32UF,Housing Landlord Manager,Fuel & Oil,18/06/2020,IJ00096629,181.21,C H Jones Ltd,
South Holland District Council,http://statistics.data.gov.uk/id/local-authority/32UF,Environmental Services,Fuel & Oil,18/06/2020,IJ00096629,298.39,C H Jones Ltd,
South Holland District Council,http://statistics.data.gov.uk/id/local-authority/32UF,Housing Landlord Manager,Fuel & Oil,18/06/2020,IJ00096629,122.16,C H Jones Ltd,
South Holland District Council,http://statistics.data.gov.uk/id/local-authority/32UF,Environmental Services,Fuel & Oil,18/06/2020,IJ00096629,4898.49,C H Jones Ltd,
South Holland District Council,http://statistics.data.gov.uk/id/local-authority/32UF,Environmental Services,Fuel & Oil,18/06/2020,IJ00096629,381.67,C H Jones Ltd,
South Holland District Council,http://statistics.data.gov.uk/id/local-authority/32UF,Environmental Services,Fuel & Oil,18/06/2020,IJ00096629,42.65,C H Jones Ltd,
South Holland District Council,http://statistics.data.gov.uk/id/local-authority/32UF,Public Protection,Furniture and Equipment,18/06/2020,IJ00096582,1720.00,Classic Printers Crowland Ltd,
South Holland District Council,http://statistics.data.gov.uk/id/local-authority/32UF,Building Control,License Fees,18/06/2020,IJ00096589,2713.54,District Surveyors Association Limited,
South Holland District Council,http://statistics.data.gov.uk/id/local-authority/32UF,Asset and Property,Gas,18/06/2020,IJ00096633,638.95,Espo Gas And Electricity,
South Holland District Council,http://statistics.data.gov.uk/id/local-authority/32UF,Environmental Services,Materials and Consumables,18/06/2020,IJ00096543,1384.76,Glenside Nurseries Ltd,
South Holland District Council,http://statistics.data.gov.uk/id/local-authority/32UF,Housing Landlord Manager,Grounds Maintenance Recharge,18/06/2020,IJ00096580,850.00,Greenscape Tree Safe Ltd,
South Holland District Council,http://statistics.data.gov.uk/id/local-authority/32UF,Housing Landlord Manager,Grounds Maintenance Contract (External),18/06/2020,IJ00096585,1470.00,G W Engineering (Lincs) Ltd,
South Holland District Council,http://statistics.data.gov.uk/id/local-authority/32UF,Housing Landlord Manager,Materials and Consumables,18/06/2020,IJ00096545,1236.35,Howdens Joinery Co.(Acc 1000118018),
South Holland District Council,http://statistics.data.gov.uk/id/local-authority/32UF,Housing Landlord Manager,Agency Staff,18/06/2020,IJ00096624,545.38,Integrity Plus Ltd,
South Holland District Council,http://statistics.data.gov.uk/id/local-authority/32UF,Environmental Services,Agency Staff,18/06/2020,IJ00096696,592.11,Integrity Plus Ltd,
South Holland District Council,http://statistics.data.gov.uk/id/local-authority/32UF,Environmental Services,Agency Staff,18/06/2020,IJ00096697,1139.38,Integrity Plus Ltd,
South Holland District Council,http://statistics.data.gov.uk/id/local-authority/32UF,Community Development,Grants and Contributions- Where a Service is Received,18/06/2020,IJ00096743,6000.00,Lincolnshire Sports Partnership Ltd,
South Holland District Council,http://statistics.data.gov.uk/id/local-authority/32UF,Housing Landlord Manager,Buildings Maintenance - Responsive,18/06/2020,IJ00096636,3994.00,M & R Glass & Glazing Ltd,
South Holland District Council,http://statistics.data.gov.uk/id/local-authority/32UF,Housing Landlord Manager,Buildings Maintenance - Responsive,18/06/2020,IJ00096636,441.00,M & R Glass & Glazing Ltd,
South Holland District Council,http://statistics.data.gov.uk/id/local-authority/32UF,Environmental Services,Agency Staff,18/06/2020,IJ00096568,672.52,The Best Connection Group Ltd,
South Holland District Council,http://statistics.data.gov.uk/id/local-authority/32UF,Environmental Services,Agency Staff,18/06/2020,IJ00096742,3453.70,The Best Connection Group Ltd,
South Holland District Council,http://statistics.data.gov.uk/id/local-authority/32UF,Environmental Services,Agency Staff,18/06/2020,IJ00096742,103.38,The Best Connection Group Ltd,
South Holland District Council,http://statistics.data.gov.uk/id/local-authority/32UF,Environmental Services,Agency Staff,18/06/2020,IJ00096742,516.89,The Best Connection Group Ltd,
South Holland District Council,http://statistics.data.gov.uk/id/local-authority/32UF,Capital,Professional Fees,18/06/2020,IJ00096562,3000.00,Thornton-Firkin Llp,
South Holland District Council,http://statistics.data.gov.uk/id/local-authority/32UF,Environmental Services,Tyres,18/06/2020,IJ00096532,153.00,Vaculug Technologies Ltd,
South Holland District Council,http://statistics.data.gov.uk/id/local-authority/32UF,Environmental Services,Tyres,18/06/2020,IJ00096532,27.00,Vaculug Technologies Ltd,
South Holland District Council,http://statistics.data.gov.uk/id/local-authority/32UF,Environmental Services,Tyres,18/06/2020,IJ00096532,3003.00,Vaculug Technologies Ltd,
South Holland District Council,http://statistics.data.gov.uk/id/local-authority/32UF,Environmental Services,Tyres,18/06/2020,IJ00096532,400.00,Vaculug Technologies Ltd,
South Holland District Council,http://statistics.data.gov.uk/id/local-authority/32UF,Environmental Services,Tyres,18/06/2020,IJ00096532,21.00,Vaculug Technologies Ltd,
South Holland District Council,http://statistics.data.gov.uk/id/local-authority/32UF,Planning,Telephones,18/06/2020,IJ00096583,48.00,Vodafone Ltd Corporate,
South Holland District Council,http://statistics.data.gov.uk/id/local-authority/32UF,Chief Executive,Telephones,18/06/2020,IJ00096583,37.72,Vodafone Ltd Corporate,
South Holland District Council,http://statistics.data.gov.uk/id/local-authority/32UF,Housing Landlord Manager,Telephones,18/06/2020,IJ00096583,42.09,Vodafone Ltd Corporate,
South Holland District Council,http://statistics.data.gov.uk/id/local-authority/32UF,Building Control,Telephones,18/06/2020,IJ00096583,8.50,Vodafone Ltd Corporate,
South Holland District Council,http://statistics.data.gov.uk/id/local-authority/32UF,Democratic Services,Telephones,18/06/2020,IJ00096583,488.84,Vodafone Ltd Corporate,
South Holland District Council,http://statistics.data.gov.uk/id/local-authority/32UF,Democratic Services,Telephones,18/06/2020,IJ00096583,22.50,Vodafone Ltd Corporate,
South Holland District Council,http://statistics.data.gov.uk/id/local-authority/32UF,Asset and Property,Telephones,18/06/2020,IJ00096583,27.00,Vodafone Ltd Corporate,
South Holland District Council,http://statistics.data.gov.uk/id/local-authority/32UF,Planning,Telephones,18/06/2020,IJ00096583,18.50,Vodafone Ltd Corporate,
South Holland District Council,http://statistics.data.gov.uk/id/local-authority/32UF,Building Control,Telephones,18/06/2020,IJ00096583,34.00,Vodafone Ltd Corporate,
South Holland District Council,http://statistics.data.gov.uk/id/local-authority/32UF,Environmental Services,Telephones,18/06/2020,IJ00096583,147.50,Vodafone Ltd Corporate,
South Holland District Council,http://statistics.data.gov.uk/id/local-authority/32UF,Environmental Services,Telephones,18/06/2020,IJ00096583,11.00,Vodafone Ltd Corporate,
South Holland District Council,http://statistics.data.gov.uk/id/local-authority/32UF,Community Development,Telephones,18/06/2020,IJ00096583,49.04,Vodafone Ltd Corporate,
South Holland District Council,http://statistics.data.gov.uk/id/local-authority/32UF,Environmental Services,Telephones,18/06/2020,IJ00096583,16.56,Vodafone Ltd Corporate,
South Holland District Council,http://statistics.data.gov.uk/id/local-authority/32UF,Housing Landlord Manager,Telephones,18/06/2020,IJ00096583,115.16,Vodafone Ltd Corporate,
South Holland District Council,http://statistics.data.gov.uk/id/local-authority/32UF,Housing,Telephones,18/06/2020,IJ00096583,35.59,Vodafone Ltd Corporate,
South Holland District Council,http://statistics.data.gov.uk/id/local-authority/32UF,Housing,Telephones,18/06/2020,IJ00096583,18.50,Vodafone Ltd Corporate,
South Holland District Council,http://statistics.data.gov.uk/id/local-authority/32UF,Housing Landlord Manager,Telephones,18/06/2020,IJ00096583,133.78,Vodafone Ltd Corporate,
South Holland District Council,http://statistics.data.gov.uk/id/local-authority/32UF,Environmental Services,Telephones,18/06/2020,IJ00096583,110.00,Vodafone Ltd Corporate,
South Holland District Council,http://statistics.data.gov.uk/id/local-authority/32UF,Environmental Services,Telephones,18/06/2020,IJ00096583,50.00,Vodafone Ltd Corporate,
South Holland District Council,http://statistics.data.gov.uk/id/local-authority/32UF,Environmental Services,Telephones,18/06/2020,IJ00096583,75.00,Vodafone Ltd Corporate,
South Holland District Council,http://statistics.data.gov.uk/id/local-authority/32UF,Public Protection,Telephones,18/06/2020,IJ00096583,48.66,Vodafone Ltd Corporate,
South Holland District Council,http://statistics.data.gov.uk/id/local-authority/32UF,Public Protection,Telephones,18/06/2020,IJ00096583,26.16,Vodafone Ltd Corporate,
South Holland District Council,http://statistics.data.gov.uk/id/local-authority/32UF,Public Protection,Telephones,18/06/2020,IJ00096583,28.50,Vodafone Ltd Corporate,
South Holland District Council,http://statistics.data.gov.uk/id/local-authority/32UF,Public Protection,Telephones,18/06/2020,IJ00096583,18.50,Vodafone Ltd Corporate,
South Holland District Council,http://statistics.data.gov.uk/id/local-authority/32UF,Community Development,Telephones,18/06/2020,IJ00096583,19.50,Vodafone Ltd Corporate,
South Holland District Council,http://statistics.data.gov.uk/id/local-authority/32UF,Community Development,Telephones,18/06/2020,IJ00096583,90.99,Vodafone Ltd Corporate,
South Holland District Council,http://statistics.data.gov.uk/id/local-authority/32UF,Economic Development,Telephones,18/06/2020,IJ00096583,45.73,Vodafone Ltd Corporate,
South Holland District Council,http://statistics.data.gov.uk/id/local-authority/32UF,Economic Development,Telephones,18/06/2020,IJ00096583,8.50,Vodafone Ltd Corporate,
South Holland District Council,http://statistics.data.gov.uk/id/local-authority/32UF,Housing Landlord Manager,Telephones,18/06/2020,IJ00096583,25.50,Vodafone Ltd Corporate,
South Holland District Council,http://statistics.data.gov.uk/id/local-authority/32UF,Democratic Services,Telephones,18/06/2020,IJ00096583,8.50,Vodafone Ltd Corporate,
South Holland District Council,http://statistics.data.gov.uk/id/local-authority/32UF,Building Control,Telephones,18/06/2020,IJ00096583,8.50,Vodafone Ltd Corporate,
South Holland District Council,http://statistics.data.gov.uk/id/local-authority/32UF,Housing Landlord Manager,Telephones,18/06/2020,IJ00096583,19.28,Vodafone Ltd Corporate,
South Holland District Council,http://statistics.data.gov.uk/id/local-authority/32UF,Housing Landlord Manager,Telephones,18/06/2020,IJ00096583,15.75,Vodafone Ltd Corporate,
South Holland District Council,http://statistics.data.gov.uk/id/local-authority/32UF,Housing Landlord Manager,Telephones,18/06/2020,IJ00096583,20.00,Vodafone Ltd Corporate,
South Holland District Council,http://statistics.data.gov.uk/id/local-authority/32UF,Building Control,Telephones,18/06/2020,IJ00096583,17.00,Vodafone Ltd Corporate,
South Holland District Council,http://statistics.data.gov.uk/id/local-authority/32UF,Housing,Telephones,18/06/2020,IJ00096583,30.18,Vodafone Ltd Corporate,
South Holland District Council,http://statistics.data.gov.uk/id/local-authority/32UF,Housing,Telephones,18/06/2020,IJ00096583,8.50,Vodafone Ltd Corporate,
South Holland District Council,http://statistics.data.gov.uk/id/local-authority/32UF,Public Protection,Telephones,18/06/2020,IJ00096583,10.00,Vodafone Ltd Corporate,
South Holland District Council,http://statistics.data.gov.uk/id/local-authority/32UF,Housing Landlord Manager,Telephones,18/06/2020,IJ00096583,132.83,Vodafone Ltd Corporate,
South Holland District Council,http://statistics.data.gov.uk/id/local-authority/32UF,Community Development,Telephones,18/06/2020,IJ00096583,50.00,Vodafone Ltd Corporate,
South Holland District Council,http://statistics.data.gov.uk/id/local-authority/32UF,Community Development,Telephones,18/06/2020,IJ00096583,14.20,Vodafone Ltd Corporate,
South Holland District Council,http://statistics.data.gov.uk/id/local-authority/32UF,Housing Landlord Manager,Telephones,18/06/2020,IJ00096583,51.00,Vodafone Ltd Corporate,
South Holland District Council,http://statistics.data.gov.uk/id/local-authority/32UF,Communications,Telephones,18/06/2020,IJ00096583,27.05,Vodafone Ltd Corporate,
South Holland District Council,http://statistics.data.gov.uk/id/local-authority/32UF,Environmental Services,Telephones,18/06/2020,IJ00096583,62.65,Vodafone Ltd Corporate,
South Holland District Council,http://statistics.data.gov.uk/id/local-authority/32UF,Corporate Improvement and Performance,Telephones,18/06/2020,IJ00096583,54.78,Vodafone Ltd Corporate,
South Holland District Council,http://statistics.data.gov.uk/id/local-authority/32UF,ICT and Customer Services,Telephones,18/06/2020,IJ00096583,20.00,Vodafone Ltd Corporate,
South Holland District Council,http://statistics.data.gov.uk/id/local-authority/32UF,Commercialisation,Telephones,18/06/2020,IJ00096583,19.54,Vodafone Ltd Corporate,
South Holland District Council,http://statistics.data.gov.uk/id/local-authority/32UF,Chief Executive,Telephones,18/06/2020,IJ00096583,66.00,Vodafone Ltd Corporate,
South Holland District Council,http://statistics.data.gov.uk/id/local-authority/32UF,Chief Executive,Telephones,18/06/2020,IJ00096583,163.53,Vodafone Ltd Corporate,
South Holland District Council,http://statistics.data.gov.uk/id/local-authority/32UF,Capital,Purchase of Hardware,18/06/2020,IJ00096583,10.98,Vodafone Ltd Corporate,
South Holland District Council,http://statistics.data.gov.uk/id/local-authority/32UF,Commercialisation,Telephones,18/06/2020,IJ00096583,14.55,Vodafone Ltd Corporate,
South Holland District Council,http://statistics.data.gov.uk/id/local-authority/32UF,Commercialisation,Telephones,18/06/2020,IJ00096583,20.00,Vodafone Ltd Corporate,
South Holland District Council,http://statistics.data.gov.uk/id/local-authority/32UF,Environmental Services,Telephones,18/06/2020,IJ00096583,76.49,Vodafone Ltd Corporate,
South Holland District Council,http://statistics.data.gov.uk/id/local-authority/32UF,Democratic Services,Telephones,18/06/2020,IJ00096583,20.00,Vodafone Ltd Corporate,
South Holland District Council,http://statistics.data.gov.uk/id/local-authority/32UF,Asset and Property,Telephones,18/06/2020,IJ00096583,5.50,Vodafone Ltd Corporate,
South Holland District Council,http://statistics.data.gov.uk/id/local-authority/32UF,ICT and Customer Services,Telephones,18/06/2020,IJ00096583,8.50,Vodafone Ltd Corporate,
South Holland District Council,http://statistics.data.gov.uk/id/local-authority/32UF,Corporate Improvement and Performance,Telephones,18/06/2020,IJ00096583,10.00,Vodafone Ltd Corporate,
South Holland District Council,http://statistics.data.gov.uk/id/local-authority/32UF,Corporate Improvement and Performance,Telephones,18/06/2020,IJ00096583,35.77,Vodafone Ltd Corporate,
South Holland District Council,http://statistics.data.gov.uk/id/local-authority/32UF,Commercialisation,Telephones,18/06/2020,IJ00096583,22.58,Vodafone Ltd Corporate,
South Holland District Council,http://statistics.data.gov.uk/id/local-authority/32UF,Commercialisation,Telephones,18/06/2020,IJ00096583,11.33,Vodafone Ltd Corporate,
South Holland District Council,http://statistics.data.gov.uk/id/local-authority/32UF,Commercialisation,Telephones,18/06/2020,IJ00096583,12.28,Vodafone Ltd Corporate,
South Holland District Council,http://statistics.data.gov.uk/id/local-authority/32UF,Corporate Improvement and Performance,Telephones,18/06/2020,IJ00096583,10.00,Vodafone Ltd Corporate,
South Holland District Council,http://statistics.data.gov.uk/id/local-authority/32UF,Environmental Services,Professional & Contractors Fees,18/06/2020,IJ00096579,975.00,West & East Anglian Asbestos Removals Ltd,
South Holland District Council,http://statistics.data.gov.uk/id/local-authority/32UF,Finance,Non -Ringfenced Government Grants - RSG,23/06/2020,IJ00096784,-24761.00,Department For Communities & Local Government,
South Holland District Council,http://statistics.data.gov.uk/id/local-authority/32UF,Collection Fund,Transitional Protection Payments,23/06/2020,IJ00096784,196466.00,Department For Communities & Local Government,
South Holland District Council,http://statistics.data.gov.uk/id/local-authority/32UF,Collection Fund,Contribution to Deficit (NDR),23/06/2020,IJ00096784,-46763.00,Department For Communities & Local Government,
South Holland District Council,http://statistics.data.gov.uk/id/local-authority/32UF,Environmental Services,Agency Staff,25/06/2020,IJ00096914,2110.00,Bibby Factors Leicester Limited,
South Holland District Council,http://statistics.data.gov.uk/id/local-authority/32UF,Environmental Services,Agency Staff,25/06/2020,IJ00096914,92.50,Bibby Factors Leicester Limited,
South Holland District Council,http://statistics.data.gov.uk/id/local-authority/32UF,Environmental Services,Agency Staff,25/06/2020,IJ00096914,462.50,Bibby Factors Leicester Limited,
South Holland District Council,http://statistics.data.gov.uk/id/local-authority/32UF,Housing,Bed and Breakfast Accommodation (Homelessness Service),25/06/2020,IJ00096954,875.00,Redacted personal information,REDACTED
South Holland District Council,http://statistics.data.gov.uk/id/local-authority/32UF,Housing Landlord Manager,Professional & Contractors Fees,25/06/2020,IJ00096889,14700.00,Bates Environmental Ltd,
South Holland District Council,http://statistics.data.gov.uk/id/local-authority/32UF,Environmental Services,Materials and Consumables,25/06/2020,IJ00096923,1149.15,RPC bpi refuse,
South Holland District Council,http://statistics.data.gov.uk/id/local-authority/32UF,Environmental Services,Materials and Consumables,25/06/2020,IJ00096924,9725.90,RPC bpi refuse,
South Holland District Council,http://statistics.data.gov.uk/id/local-authority/32UF,Finance,Banking Charges,25/06/2020,IJ00096937,5196.37,Capita Business Services Ltd,
South Holland District Council,http://statistics.data.gov.uk/id/local-authority/32UF,Housing Landlord Manager,Sewerage Treatment Works,25/06/2020,IJ00096840,24379.19,C.G. Godfrey Ltd,
South Holland District Council,http://statistics.data.gov.uk/id/local-authority/32UF,Housing Landlord Manager,Fuel & Oil,25/06/2020,IJ00096907,239.91,C H Jones Ltd,
South Holland District Council,http://statistics.data.gov.uk/id/local-authority/32UF,Environmental Services,Fuel & Oil,25/06/2020,IJ00096907,73.58,C H Jones Ltd,
South Holland District Council,http://statistics.data.gov.uk/id/local-authority/32UF,Environmental Services,Fuel & Oil,25/06/2020,IJ00096907,49.50,C H Jones Ltd,
South Holland District Council,http://statistics.data.gov.uk/id/local-authority/32UF,Environmental Services,Fuel & Oil,25/06/2020,IJ00096907,5111.31,C H Jones Ltd,
South Holland District Council,http://statistics.data.gov.uk/id/local-authority/32UF,Environmental Services,Fuel & Oil,25/06/2020,IJ00096907,260.82,C H Jones Ltd,
South Holland District Council,http://statistics.data.gov.uk/id/local-authority/32UF,Environmental Services,Fuel & Oil,25/06/2020,IJ00096907,76.75,C H Jones Ltd,
South Holland District Council,http://statistics.data.gov.uk/id/local-authority/32UF,Environmental Services,Fuel & Oil,25/06/2020,IJ00096907,35.04,C H Jones Ltd,
South Holland District Council,http://statistics.data.gov.uk/id/local-authority/32UF,ICT and Customer Services,Computer Software Licence Costs,25/06/2020,IJ00096800,3078.00,Civica UK Limited,
South Holland District Council,http://statistics.data.gov.uk/id/local-authority/32UF,Environmental Services,Other Miscellaneous Expenses,25/06/2020,IJ00096820,879.00,Classic Printers Crowland Ltd,
South Holland District Council,http://statistics.data.gov.uk/id/local-authority/32UF,Public Protection,Furniture and Equipment,25/06/2020,IJ00096822,847.00,Classic Printers Crowland Ltd,
South Holland District Council,http://statistics.data.gov.uk/id/local-authority/32UF,Asset and Property,Buildings Maintenance - Responsive,25/06/2020,IJ00096958,521.50,Gbsg  Ltd,
South Holland District Council,http://statistics.data.gov.uk/id/local-authority/32UF,Asset and Property,Buildings Maintenance - Responsive,25/06/2020,IJ00096959,687.94,Gbsg  Ltd,
South Holland District Council,http://statistics.data.gov.uk/id/local-authority/32UF,Asset and Property,Buildings Maintenance - Responsive,25/06/2020,IJ00096960,728.50,Gbsg  Ltd,
South Holland District Council,http://statistics.data.gov.uk/id/local-authority/32UF,Asset and Property,Buildings Maintenance - Responsive,25/06/2020,IJ00096961,543.17,Gbsg  Ltd,
South Holland District Council,http://statistics.data.gov.uk/id/local-authority/32UF,Community Development,Materials and Consumables,25/06/2020,IJ00096842,364.00,Glenside Nurseries Ltd,
South Holland District Council,http://statistics.data.gov.uk/id/local-authority/32UF,Spalding Special Expenses,Materials and Consumables,25/06/2020,IJ00096842,364.00,Glenside Nurseries Ltd,
South Holland District Council,http://statistics.data.gov.uk/id/local-authority/32UF,Community Development,Materials and Consumables,25/06/2020,IJ00096805,859.50,Glenside Nurseries Ltd,
South Holland District Council,http://statistics.data.gov.uk/id/local-authority/32UF,Spalding Special Expenses,Materials and Consumables,25/06/2020,IJ00096805,859.50,Glenside Nurseries Ltd,
South Holland District Council,http://statistics.data.gov.uk/id/local-authority/32UF,Housing Landlord Manager,Agency Staff,25/06/2020,IJ00096895,545.38,Integrity Plus Ltd,
South Holland District Council,http://statistics.data.gov.uk/id/local-authority/32UF,Environmental Services,Agency Staff,25/06/2020,IJ00096915,931.30,Integrity Plus Ltd,
South Holland District Council,http://statistics.data.gov.uk/id/local-authority/32UF,Environmental Services,Agency Staff,25/06/2020,IJ00096916,605.88,Integrity Plus Ltd,
South Holland District Council,http://statistics.data.gov.uk/id/local-authority/32UF,Housing Landlord Manager,External Printing and Design Costs,25/06/2020,IJ00096920,1141.97,Newton Press Ltd,
South Holland District Council,http://statistics.data.gov.uk/id/local-authority/32UF,Housing Landlord Manager,Materials and Consumables,25/06/2020,IJ00096903,1030.35,Rexel Uk Ltd,
South Holland District Council,http://statistics.data.gov.uk/id/local-authority/32UF,Environmental Services,Agency Staff,25/06/2020,IJ00096855,3165.36,The Best Connection Group Ltd,
South Holland District Council,http://statistics.data.gov.uk/id/local-authority/32UF,Environmental Services,Agency Staff,25/06/2020,IJ00096855,206.76,The Best Connection Group Ltd,
South Holland District Council,http://statistics.data.gov.uk/id/local-authority/32UF,Environmental Services,Agency Staff,25/06/2020,IJ00096855,516.89,The Best Connection Group Ltd,
South Holland District Council,http://statistics.data.gov.uk/id/local-authority/32UF,Environmental Services,Agency Staff,25/06/2020,IJ00096856,613.87,The Best Connection Group Ltd,
South Holland District Council,http://statistics.data.gov.uk/id/local-authority/32UF,Finance,Insurance,25/06/2020,IJ00096930,11200.00,The Risk Factor Ltd,
South Holland District Council,http://statistics.data.gov.uk/id/local-authority/32UF,Finance,Fees and Charges General,25/06/2020,IJ00096935,-28.00,Unison,
South Holland District Council,http://statistics.data.gov.uk/id/local-authority/32UF,Balance Sheet,Payroll-Unison,25/06/2020,IJ00096935,933.20,Unison,
South Holland District Council,http://statistics.data.gov.uk/id/local-authority/32UF,Environmental Services,Telephones,25/06/2020,IJ00096791,250.00,Vodafone Ltd Corporate,
South Holland District Council,http://statistics.data.gov.uk/id/local-authority/32UF,Commercialisation,Telephones,25/06/2020,IJ00096791,250.00,Vodafone Ltd Corporate,
South Holland District Council,http://statistics.data.gov.uk/id/local-authority/32UF,Environmental Services,Telephones,25/06/2020,IJ00096791,250.00,Vodafone Ltd Corporate,
South Holland District Council,http://statistics.data.gov.uk/id/local-authority/32UF,Environmental Services,Professional & Contractors Fees,25/06/2020,IJ00096837,950.00,West & East Anglian Asbestos Removals Ltd,
South Holland District Council,http://statistics.data.gov.uk/id/local-authority/32UF,Housing Landlord Manager,Roof Repairs,25/06/2020,IJ00096858,1240.00,Wrights & Holbeach Asphalt Ltd,
South Holland District Council,http://statistics.data.gov.uk/id/local-authority/32UF,Finance,Banking Charges,30/06/2020,IJ00097001,4520.33,Capita Business Services Ltd,
,,,,,The following payments were made by p-card,,
South Holland District Council,http://statistics.data.gov.uk/id/local-authority/32UF,,,15/06/2020,,1753.61,Www.Bookmycourse.C,
South Holland District Council,http://statistics.data.gov.uk/id/local-authority/32UF,,,22/06/2020,,1176.00,Www.Stroma.Com,
South Holland District Council,http://statistics.data.gov.uk/id/local-authority/32UF,,,11/06/2020,,617.50,Dvla Vehicle Tax,
South Holland District Council,http://statistics.data.gov.uk/id/local-authority/32UF,,,11/06/2020,,617.50,Dvla Vehicle Tax,
South Holland District Council,http://statistics.data.gov.uk/id/local-authority/32UF,,,11/06/2020,,617.50,Dvla Vehicle Tax,
South Holland District Council,http://statistics.data.gov.uk/id/local-authority/32UF,,,11/06/2020,,617.50,Dvla Vehicle Tax,
South Holland District Council,http://statistics.data.gov.uk/id/local-authority/32UF,,,11/06/2020,,617.50,Dvla Vehicle Tax,
South Holland District Council,http://statistics.data.gov.uk/id/local-authority/32UF,,,11/06/2020,,617.50,Dvla Vehicle Tax,
South Holland District Council,http://statistics.data.gov.uk/id/local-authority/32UF,,,11/06/2020,,617.50,Dvla Vehicle Tax,
South Holland District Council,http://statistics.data.gov.uk/id/local-authority/32UF,,,11/06/2020,,617.50,Dvla Vehicle Tax,
South Holland District Council,http://statistics.data.gov.uk/id/local-authority/32UF,,,11/06/2020,,617.50,Dvla Vehicle Tax,
South Holland District Council,http://statistics.data.gov.uk/id/local-authority/32UF,,,11/06/2020,,617.50,Dvla Vehicle Tax,
South Holland District Council,http://statistics.data.gov.uk/id/local-authority/32UF,,,16/06/2020,,617.50,Dvla Vehicle Tax,
South Holland District Council,http://statistics.data.gov.uk/id/local-authority/32UF,,,16/06/2020,,617.50,Dvla Vehicle Tax,
South Holland District Council,http://statistics.data.gov.uk/id/local-authority/32UF,,,19/06/2020,,576.00,White Lion Hotel,
